[Event "Early-Titled-Tuesday-Blitz-February-13-2024"]
[Site "Chess.com"]
[Date "2024.02.13"]
[Round "9"]
[White "rezamahdavi2008"]
[Black "GMBenjaminBok"]
[Result "0-1"]
[WhiteElo "2844"]
[BlackElo "2980"]
[TimeControl "180+1"]
[EndTime "9:49:04 PST"]
[Termination "GMBenjaminBok won by resignation"]

1. d4 {[%clk 0:02:57.2]} 1... Nf6 {[%clk 0:02:59.9]} 2. c4 {[%clk 0:02:55.7]}
2... e6 {[%clk 0:03:00.1]} 3. Nf3 {[%clk 0:02:56.4]} 3... b6 {[%clk 0:03:00.3]}
4. g3 {[%clk 0:02:53.5]} 4... Ba6 {[%clk 0:03:00.7]} 5. b3 {[%clk 0:02:49.7]}
5... Bb4+ {[%clk 0:03:00.8]} 6. Bd2 {[%clk 0:02:48.6]} 6... Be7 {[%clk
0:03:01.5]} 7. Bg2 {[%clk 0:02:48.2]} 7... O-O {[%clk 0:03:02.2]} 8. O-O {[%clk
0:02:33.2]} 8... d5 {[%clk 0:03:02.5]} 9. Qc2 {[%clk 0:02:30.8]} 9... c5 {[%clk
0:03:01.5]} 10. Rd1 {[%clk 0:02:08.7]} 10... Nc6 {[%clk 0:03:00.3]} 11. dxc5
{[%clk 0:02:03.9]} 11... bxc5 {[%clk 0:03:00.2]} 12. Bg5 {[%clk 0:01:48.8]}
12... h6 {[%clk 0:02:39.4]} 13. Bxf6 {[%clk 0:01:35.3]} 13... Bxf6 {[%clk
0:02:40.3]} 14. Nc3 {[%clk 0:01:35.6]} 14... Qa5 {[%clk 0:02:14.6]} 15. Rac1
{[%clk 0:01:23.6]} 15... d4 {[%clk 0:02:12.2]} 16. Ne4 {[%clk 0:01:16]} 16...
Be7 {[%clk 0:02:12.3]} 17. a3 {[%clk 0:00:58.8]} 17... Rab8 {[%clk 0:02:11.9]}
18. Ne1 {[%clk 0:00:56.3]} 18... Qb6 {[%clk 0:01:56.8]} 19. Nd3 {[%clk
0:00:53.7]} 19... Bb7 {[%clk 0:01:31.2]} 20. Rb1 {[%clk 0:00:34.8]} 20... a5
{[%clk 0:01:29.3]} 21. b4 {[%clk 0:00:15.5]} 21... cxb4 {[%clk 0:01:05.8]} 22.
c5 {[%clk 0:00:16.4]} 22... Qb5 {[%clk 0:00:57.1]} 23. axb4 {[%clk 0:00:15.6]}
23... axb4 {[%clk 0:00:57.1]} 24. Nd6 {[%clk 0:00:13.4]} 24... Bxd6 {[%clk
0:00:56.4]} 25. cxd6 {[%clk 0:00:14.3]} 25... Rfd8 {[%clk 0:00:47.1]} 26. Bxc6
{[%clk 0:00:08.8]} 26... Bxc6 {[%clk 0:00:25.5]} 27. Nxb4 {[%clk 0:00:06.5]}
27... Ba8 {[%clk 0:00:19.4]} 28. Rxd4 {[%clk 0:00:06.2]} 28... Qe5 {[%clk
0:00:14]} 29. Rbd1 {[%clk 0:00:04.6]} 29... Rbc8 {[%clk 0:00:12.4]} 30. Qd2
{[%clk 0:00:04.8]} 30... Qf5 {[%clk 0:00:09]} 31. f3 {[%clk 0:00:04.2]} 31... e5
{[%clk 0:00:08.5]} 32. Rd3 {[%clk 0:00:03.9]} 32... e4 {[%clk 0:00:09.1]} 33.
Re3 {[%clk 0:00:02.1]} 33... exf3 {[%clk 0:00:08.9]} 34. exf3 {[%clk 0:00:03]}
34... Qc5 {[%clk 0:00:06.5]} 35. Kg2 {[%clk 0:00:03.5]} 35... Rd7 {[%clk
0:00:04.2]} 36. Rd3 {[%clk 0:00:03.8]} 36... Rcd8 {[%clk 0:00:04]} 37. Rd4
{[%clk 0:00:04.4]} 37... Qf5 {[%clk 0:00:02.8]} 38. Qd3 {[%clk 0:00:03.7]} 38...
Qf6 {[%clk 0:00:02.8]} 39. Nc2 {[%clk 0:00:03.9]} 39... Rxd6 {[%clk 0:00:02.8]}
40. Rxd6 {[%clk 0:00:02.1]} 40... Rxd6 {[%clk 0:00:03.7]} 41. Qe2 {[%clk
0:00:01.9]} 41... Qxf3+ {[%clk 0:00:01.9]} 42. Qxf3 {[%clk 0:00:01.8]} 42...
Bxf3+ {[%clk 0:00:02.8]} 43. Kxf3 {[%clk 0:00:02.5]} 43... Rxd1 {[%clk
0:00:03.6]} 44. Ne3 {[%clk 0:00:03.4]} 44... Ra1 {[%clk 0:00:03.6]} 45. h4
{[%clk 0:00:04.3]} 45... Ra3 {[%clk 0:00:03.9]} 46. h5 {[%clk 0:00:04.8]} 46...
g6 {[%clk 0:00:04.3]} 47. hxg6 {[%clk 0:00:05]} 47... fxg6 {[%clk 0:00:05.2]}
48. Kf4 {[%clk 0:00:05.9]} 48... Kg7 {[%clk 0:00:05.7]} 49. Kf3 {[%clk
0:00:06.4]} 49... h5 {[%clk 0:00:06]} 50. Kf4 {[%clk 0:00:06.8]} 50... Ra4+
{[%clk 0:00:06.4]} 51. Kf3 {[%clk 0:00:07.3]} 51... Kf6 {[%clk 0:00:07.1]} 52.
Nd5+ {[%clk 0:00:07.8]} 52... Kg5 {[%clk 0:00:07.3]} 53. Ne3 {[%clk 0:00:07.3]}
53... Ra3 {[%clk 0:00:07.7]} 54. Kf2 {[%clk 0:00:08]} 54... Rxe3 {[%clk
0:00:07.9]} 55. Kxe3 {[%clk 0:00:08.9]} 55... Kg4 {[%clk 0:00:08.7]} 56. Kf2
{[%clk 0:00:09.8]} 56... Kh3 {[%clk 0:00:09.3]} 57. Kf3 {[%clk 0:00:10.7]} 57...
g5 {[%clk 0:00:09.9]} 0-1

[Event "Early-Titled-Tuesday-Blitz-February-13-2024"]
[Site "Chess.com"]
[Date "2024.02.13"]
[Round "9"]
[White "bulletteemo"]
[Black "Oleksandr_Bortnyk"]
[Result "1-0"]
[WhiteElo "2614"]
[BlackElo "3042"]
[TimeControl "180+1"]
[EndTime "9:49:05 PST"]
[Termination "bulletteemo won by resignation"]

1. e4 {[%clk 0:02:59.9]} 1... Nf6 {[%clk 0:02:57.9]} 2. e5 {[%clk 0:02:59.6]}
2... Nd5 {[%clk 0:02:56.2]} 3. d4 {[%clk 0:02:59.7]} 3... d6 {[%clk 0:02:56.1]}
4. exd6 {[%clk 0:02:51]} 4... exd6 {[%clk 0:02:56.3]} 5. Nf3 {[%clk 0:02:51.2]}
5... Be7 {[%clk 0:02:56.4]} 6. Bd3 {[%clk 0:02:48.8]} 6... O-O {[%clk
0:02:56.4]} 7. O-O {[%clk 0:02:48.3]} 7... Nb4 {[%clk 0:02:55.4]} 8. Bc4 {[%clk
0:02:40.9]} 8... Bf5 {[%clk 0:02:54.1]} 9. Bb3 {[%clk 0:02:40.6]} 9... Nd7
{[%clk 0:02:50.7]} 10. Nc3 {[%clk 0:02:33.7]} 10... Nf6 {[%clk 0:02:43.2]} 11.
Bf4 {[%clk 0:02:25.1]} 11... Qd7 {[%clk 0:02:36.4]} 12. a3 {[%clk 0:02:18.5]}
12... Nc6 {[%clk 0:02:36.4]} 13. d5 {[%clk 0:02:17.7]} 13... Nd8 {[%clk
0:02:31.1]} 14. h3 {[%clk 0:02:13.3]} 14... Ne4 {[%clk 0:02:28.4]} 15. Ne2
{[%clk 0:02:08.1]} 15... Bf6 {[%clk 0:02:25.5]} 16. Ned4 {[%clk 0:02:07.1]}
16... Bg6 {[%clk 0:02:11.8]} 17. c3 {[%clk 0:02:07.2]} 17... c5 {[%clk
0:02:10.4]} 18. Ba4 {[%clk 0:01:17.5]} 18... Qc7 {[%clk 0:02:05.2]} 19. Nb5
{[%clk 0:01:12.5]} 19... Qb6 {[%clk 0:02:02.4]} 20. Nd2 {[%clk 0:01:07.7]} 20...
Nxd2 {[%clk 0:01:31.6]} 21. Qxd2 {[%clk 0:01:08.6]} 21... Be7 {[%clk 0:01:31.6]}
22. Rfe1 {[%clk 0:01:02.6]} 22... a6 {[%clk 0:01:32.1]} 23. Rxe7 {[%clk
0:00:59.6]} 23... axb5 {[%clk 0:01:33]} 24. Bc2 {[%clk 0:00:55.5]} 24... b4
{[%clk 0:01:30.5]} 25. a4 {[%clk 0:00:41.7]} 25... bxc3 {[%clk 0:01:29.7]} 26.
Qxc3 {[%clk 0:00:40.6]} 26... Bxc2 {[%clk 0:01:24.9]} 27. Qxc2 {[%clk
0:00:40.1]} 27... f6 {[%clk 0:01:25.3]} 28. Ra3 {[%clk 0:00:27.7]} 28... Nf7
{[%clk 0:01:24.9]} 29. Rb3 {[%clk 0:00:27.3]} 29... Qa6 {[%clk 0:01:16.2]} 30.
Rbxb7 {[%clk 0:00:26.3]} 30... Qxa4 {[%clk 0:01:16.4]} 31. Qxa4 {[%clk
0:00:26.1]} 31... Rxa4 {[%clk 0:01:17.3]} 32. Bxd6 {[%clk 0:00:24.6]} 32... Rb4
{[%clk 0:00:46.8]} 33. Bxc5 {[%clk 0:00:18.7]} 33... Rxb7 {[%clk 0:00:45.3]} 34.
Rxb7 {[%clk 0:00:19.6]} 34... Rd8 {[%clk 0:00:45]} 35. Be7 {[%clk 0:00:17.9]}
35... Ra8 {[%clk 0:00:26.8]} 36. d6 {[%clk 0:00:18.2]} 36... h5 {[%clk
0:00:20.6]} 37. d7 {[%clk 0:00:18.3]} 37... Kh7 {[%clk 0:00:19.7]} 38. Rc7
{[%clk 0:00:16.6]} 38... Ra1+ {[%clk 0:00:18.2]} 39. Kh2 {[%clk 0:00:16.8]}
39... Rd1 {[%clk 0:00:19.1]} 40. b4 {[%clk 0:00:16.6]} 40... Kg6 {[%clk
0:00:18.5]} 41. b5 {[%clk 0:00:17]} 41... Rb1 {[%clk 0:00:18.5]} 42. Rb7 {[%clk
0:00:16]} 42... Rb2 {[%clk 0:00:17.8]} 43. d8=Q {[%clk 0:00:16]} 43... Nxd8
{[%clk 0:00:17.6]} 44. Bxd8 {[%clk 0:00:16.5]} 44... Rxf2 {[%clk 0:00:18.4]} 45.
b6 {[%clk 0:00:16.3]} 45... Rb2 {[%clk 0:00:18.4]} 46. Rd7 {[%clk 0:00:16.6]}
46... f5 {[%clk 0:00:18.5]} 47. b7 {[%clk 0:00:16.9]} 47... f4 {[%clk
0:00:19.4]} 48. Kg1 {[%clk 0:00:14]} 48... Kf5 {[%clk 0:00:18]} 49. Rxg7 {[%clk
0:00:12.6]} 49... Rb1+ {[%clk 0:00:18.3]} 50. Kf2 {[%clk 0:00:12.7]} 50... Rb2+
{[%clk 0:00:18.9]} 51. Ke1 {[%clk 0:00:13.2]} 51... Ke4 {[%clk 0:00:18.9]} 52.
Bf6 {[%clk 0:00:12.6]} 52... Rb6 {[%clk 0:00:16.8]} 53. Bg5 {[%clk 0:00:11.5]}
53... f3 {[%clk 0:00:16.3]} 54. gxf3+ {[%clk 0:00:11.6]} 54... Kxf3 {[%clk
0:00:17.2]} 55. Rf7+ {[%clk 0:00:12]} 55... Ke4 {[%clk 0:00:13.3]} 56. Bf4
{[%clk 0:00:12.5]} 56... Rb1+ {[%clk 0:00:13.6]} 57. Kd2 {[%clk 0:00:12.6]}
57... Rb2+ {[%clk 0:00:07.2]} 58. Kc3 {[%clk 0:00:13]} 58... Rxb7 {[%clk
0:00:08.1]} 59. Rxb7 {[%clk 0:00:12.8]} 59... Kxf4 {[%clk 0:00:08.7]} 60. Kd4
{[%clk 0:00:13.2]} 60... Kg3 {[%clk 0:00:09.6]} 61. Rb3+ {[%clk 0:00:13.4]}
61... Kf4 {[%clk 0:00:09.6]} 62. Kd5 {[%clk 0:00:13.4]} 62... h4 {[%clk
0:00:10.5]} 63. Ke6 {[%clk 0:00:13.8]} 63... Kg5 {[%clk 0:00:11]} 64. Ke5 {[%clk
0:00:14.2]} 1-0

[Event "Early-Titled-Tuesday-Blitz-February-13-2024"]
[Site "Chess.com"]
[Date "2024.02.13"]
[Round "9"]
[White "SashaKuzhilniy"]
[Black "sokidze"]
[Result "0-1"]
[WhiteElo "2599"]
[BlackElo "2818"]
[TimeControl "180+1"]
[EndTime "9:49:07 PST"]
[Termination "sokidze won on time"]

1. e4 {[%clk 0:03:00.9]} 1... c6 {[%clk 0:02:58.3]} 2. d4 {[%clk 0:03:00.4]}
2... d5 {[%clk 0:02:58.3]} 3. exd5 {[%clk 0:03:01.3]} 3... cxd5 {[%clk
0:02:58.4]} 4. Bd3 {[%clk 0:03:00.5]} 4... Nc6 {[%clk 0:02:57.8]} 5. c3 {[%clk
0:03:00.5]} 5... Nf6 {[%clk 0:02:57.9]} 6. h3 {[%clk 0:03:00.4]} 6... e5 {[%clk
0:02:57]} 7. dxe5 {[%clk 0:03:01.3]} 7... Nxe5 {[%clk 0:02:57]} 8. Nf3 {[%clk
0:03:02.1]} 8... Nxd3+ {[%clk 0:02:56.6]} 9. Qxd3 {[%clk 0:03:03]} 9... Bd6
{[%clk 0:02:57.1]} 10. O-O {[%clk 0:03:02.4]} 10... O-O {[%clk 0:02:57.7]} 11.
Bg5 {[%clk 0:03:02]} 11... h6 {[%clk 0:02:57.7]} 12. Bh4 {[%clk 0:03:02.2]}
12... g5 {[%clk 0:02:56.3]} 13. Bg3 {[%clk 0:03:02.7]} 13... Bxg3 {[%clk
0:02:56.9]} 14. fxg3 {[%clk 0:03:03.5]} 14... g4 {[%clk 0:02:57.6]} 15. hxg4
{[%clk 0:03:02.8]} 15... Nxg4 {[%clk 0:02:58.1]} 16. Nbd2 {[%clk 0:03:00.1]}
16... Re8 {[%clk 0:02:57.5]} 17. Rae1 {[%clk 0:02:53.1]} 17... Qb6+ {[%clk
0:02:51.8]} 18. Qd4 {[%clk 0:02:47.5]} 18... Qxd4+ {[%clk 0:02:36.6]} 19. Nxd4
{[%clk 0:02:47]} 19... Bd7 {[%clk 0:02:36.9]} 20. N2f3 {[%clk 0:02:23.7]} 20...
f6 {[%clk 0:02:31]} 21. Nh2 {[%clk 0:02:10.6]} 21... Kg7 {[%clk 0:01:57.9]} 22.
Nxg4 {[%clk 0:02:06.9]} 22... Bxg4 {[%clk 0:01:58.8]} 23. Kf2 {[%clk 0:02:04.5]}
23... Re5 {[%clk 0:01:57.4]} 24. Re3 {[%clk 0:02:03.6]} 24... Rae8 {[%clk
0:01:56.2]} 25. Rfe1 {[%clk 0:02:04.1]} 25... a6 {[%clk 0:01:54.5]} 26. Nf3
{[%clk 0:01:37.4]} 26... Bxf3 {[%clk 0:01:50.2]} 27. gxf3 {[%clk 0:01:38.3]}
27... h5 {[%clk 0:01:41.1]} 28. a4 {[%clk 0:01:02.6]} 28... b6 {[%clk
0:01:31.7]} 29. f4 {[%clk 0:00:38.1]} 29... Re4 {[%clk 0:00:45.8]} 30. Rxe4
{[%clk 0:00:37.9]} 30... Rxe4 {[%clk 0:00:30.9]} 31. Ra1 {[%clk 0:00:20.3]}
31... d4 {[%clk 0:00:18.1]} 32. a5 {[%clk 0:00:09]} 32... dxc3 {[%clk
0:00:13.8]} 33. bxc3 {[%clk 0:00:09.8]} 33... b5 {[%clk 0:00:14.4]} 34. Rd1
{[%clk 0:00:10]} 34... Ra4 {[%clk 0:00:13.8]} 35. Rd5 {[%clk 0:00:06.1]} 35...
Kg6 {[%clk 0:00:12.7]} 36. Kg2 {[%clk 0:00:05.4]} 36... Rxa5 {[%clk 0:00:10.9]}
37. Kh3 {[%clk 0:00:05.6]} 37... Ra2 {[%clk 0:00:11.6]} 38. Rd6 {[%clk
0:00:01.8]} 38... a5 {[%clk 0:00:08.2]} 39. Rb6 {[%clk 0:00:02.5]} 39... Rb2
{[%clk 0:00:08.5]} 40. Ra6 {[%clk 0:00:02.1]} 40... a4 {[%clk 0:00:09]} 41. c4
{[%clk 0:00:02.5]} 41... bxc4 {[%clk 0:00:08.4]} 42. Rxa4 {[%clk 0:00:02.6]}
42... c3 {[%clk 0:00:05.3]} 43. Ra5 {[%clk 0:00:02.7]} 43... Rd2 {[%clk
0:00:03.2]} 44. Rc5 {[%clk 0:00:02.7]} 44... c2 {[%clk 0:00:03.7]} 45. Rc7
{[%clk 0:00:02]} 45... Kf5 {[%clk 0:00:03.6]} 46. Rc4 {[%clk 0:00:02.7]} 46...
Ke6 {[%clk 0:00:03.3]} 0-1

[Event "Early-Titled-Tuesday-Blitz-February-13-2024"]
[Site "Chess.com"]
[Date "2024.02.13"]
[Round "9"]
[White "Suleyman_Chess06"]
[Black "JonasEilenberg"]
[Result "1-0"]
[WhiteElo "2756"]
[BlackElo "2594"]
[TimeControl "180+1"]
[EndTime "9:49:08 PST"]
[Termination "Suleyman_Chess06 won on time"]

1. Nf3 {[%clk 0:03:00.9]} 1... d5 {[%clk 0:02:58.5]} 2. g3 {[%clk 0:03:00.6]}
2... Nc6 {[%clk 0:02:54.7]} 3. d4 {[%clk 0:02:59.1]} 3... Bf5 {[%clk 0:02:55.2]}
4. Bg2 {[%clk 0:02:59.4]} 4... e6 {[%clk 0:02:55.7]} 5. O-O {[%clk 0:02:59.7]}
5... Qd7 {[%clk 0:02:53.2]} 6. c4 {[%clk 0:03:00.1]} 6... dxc4 {[%clk 0:02:50]}
7. Nc3 {[%clk 0:03:00.7]} 7... O-O-O {[%clk 0:02:43.9]} 8. Qa4 {[%clk
0:03:00.7]} 8... Kb8 {[%clk 0:02:41]} 9. Qxc4 {[%clk 0:03:00.5]} 9... Nf6 {[%clk
0:02:39.5]} 10. Bf4 {[%clk 0:02:58.8]} 10... Ne4 {[%clk 0:02:27.8]} 11. Rfd1
{[%clk 0:02:53]} 11... f6 {[%clk 0:02:09]} 12. d5 {[%clk 0:02:50.2]} 12... Na5
{[%clk 0:01:44.1]} 13. Qb5 {[%clk 0:01:33.2]} 13... Qxb5 {[%clk 0:01:43.5]} 14.
Nxb5 {[%clk 0:01:34.1]} 14... e5 {[%clk 0:01:43.8]} 15. Be3 {[%clk 0:01:31.5]}
15... a6 {[%clk 0:01:40.7]} 16. Nc3 {[%clk 0:01:30.7]} 16... Nxc3 {[%clk
0:01:22.4]} 17. bxc3 {[%clk 0:01:31.6]} 17... Nc4 {[%clk 0:01:23.2]} 18. Bc1
{[%clk 0:01:32.1]} 18... Bc5 {[%clk 0:01:20.4]} 19. Nd2 {[%clk 0:01:32.3]} 19...
Bc2 {[%clk 0:00:56.4]} 20. Re1 {[%clk 0:01:16]} 20... Nxd2 {[%clk 0:00:43]} 21.
Bxd2 {[%clk 0:01:16.9]} 21... c6 {[%clk 0:00:43.8]} 22. e4 {[%clk 0:01:11.7]}
22... cxd5 {[%clk 0:00:44.1]} 23. exd5 {[%clk 0:01:12.6]} 23... Rd6 {[%clk
0:00:44.1]} 24. c4 {[%clk 0:01:11]} 24... Rc8 {[%clk 0:00:43]} 25. Rac1 {[%clk
0:01:10.3]} 25... Bd3 {[%clk 0:00:40.3]} 26. Rc3 {[%clk 0:01:10.2]} 26... Bf5
{[%clk 0:00:38.5]} 27. Rb3 {[%clk 0:01:06.2]} 27... b6 {[%clk 0:00:36.5]} 28.
Bf1 {[%clk 0:01:03.5]} 28... Ka7 {[%clk 0:00:36.1]} 29. Be3 {[%clk 0:01:02.5]}
29... Bc2 {[%clk 0:00:30.2]} 30. Rb2 {[%clk 0:01:00.9]} 30... Bf5 {[%clk
0:00:29.4]} 31. Kg2 {[%clk 0:00:59.1]} 31... Be4+ {[%clk 0:00:28.9]} 32. f3
{[%clk 0:00:59.1]} 32... Bg6 {[%clk 0:00:29.3]} 33. Kf2 {[%clk 0:00:58.7]} 33...
Bxe3+ {[%clk 0:00:26.2]} 34. Rxe3 {[%clk 0:00:58.6]} 34... Rc5 {[%clk
0:00:27.1]} 35. f4 {[%clk 0:00:58.4]} 35... e4 {[%clk 0:00:19.7]} 36. g4 {[%clk
0:00:58.3]} 36... f5 {[%clk 0:00:19.2]} 37. gxf5 {[%clk 0:00:58.9]} 37... Bxf5
{[%clk 0:00:20.1]} 38. Rd2 {[%clk 0:00:56.3]} 38... g6 {[%clk 0:00:20.1]} 39.
Rd4 {[%clk 0:00:56.9]} 39... b5 {[%clk 0:00:18.1]} 40. Ra3 {[%clk 0:00:47.6]}
40... bxc4 {[%clk 0:00:14.8]} 41. Bxc4 {[%clk 0:00:48.5]} 41... h5 {[%clk
0:00:12.5]} 42. Ke3 {[%clk 0:00:48.6]} 42... Rc7 {[%clk 0:00:09.4]} 43. Be2
{[%clk 0:00:45.7]} 43... Rc1 {[%clk 0:00:08.6]} 44. Rda4 {[%clk 0:00:43.7]}
44... Rc5 {[%clk 0:00:04.6]} 45. Rxa6+ {[%clk 0:00:43.6]} 45... Rxa6 {[%clk
0:00:05.5]} 46. Rxa6+ {[%clk 0:00:44.3]} 46... Kb7 {[%clk 0:00:06.4]} 47. Rd6
{[%clk 0:00:42.4]} 47... Kc7 {[%clk 0:00:05.6]} 48. Rc6+ {[%clk 0:00:36.3]}
48... Rxc6 {[%clk 0:00:06.1]} 49. dxc6 {[%clk 0:00:37.2]} 49... Kxc6 {[%clk
0:00:07]} 50. Kd4 {[%clk 0:00:37.9]} 50... Kb6 {[%clk 0:00:06.1]} 51. Bc4 {[%clk
0:00:31.9]} 51... Ka5 {[%clk 0:00:06.2]} 52. Bd5 {[%clk 0:00:32.3]} 52... e3
{[%clk 0:00:04.3]} 53. Kxe3 {[%clk 0:00:32.6]} 53... Kb4 {[%clk 0:00:05.2]} 54.
Kd4 {[%clk 0:00:33.1]} 54... Ka3 {[%clk 0:00:05.1]} 55. h4 {[%clk 0:00:30.7]}
55... Bg4 {[%clk 0:00:03.4]} 56. Ke5 {[%clk 0:00:30.2]} 56... Bf5 {[%clk
0:00:02.1]} 57. Kf6 {[%clk 0:00:30.3]} 57... Bd3 {[%clk 0:00:02]} 58. Bf7 {[%clk
0:00:30.6]} 1-0

[Event "Early-Titled-Tuesday-Blitz-February-13-2024"]
[Site "Chess.com"]
[Date "2024.02.13"]
[Round "9"]
[White "Leonid_Starozhilov"]
[Black "santosalberto1987"]
[Result "0-1"]
[WhiteElo "2715"]
[BlackElo "2592"]
[TimeControl "180+1"]
[EndTime "9:49:11 PST"]
[Termination "santosalberto1987 won on time"]

1. e4 {[%clk 0:03:00.9]} 1... e6 {[%clk 0:02:59.9]} 2. d4 {[%clk 0:03:00.8]}
2... d5 {[%clk 0:03:00.2]} 3. e5 {[%clk 0:03:01.2]} 3... c5 {[%clk 0:03:00.2]}
4. c3 {[%clk 0:03:01]} 4... Qb6 {[%clk 0:03:00.7]} 5. Nf3 {[%clk 0:03:00.6]}
5... Nc6 {[%clk 0:03:01.3]} 6. a3 {[%clk 0:02:59.9]} 6... a5 {[%clk 0:03:01.5]}
7. Bd3 {[%clk 0:02:57.1]} 7... Bd7 {[%clk 0:03:01.2]} 8. Bc2 {[%clk 0:02:56.4]}
8... a4 {[%clk 0:03:01.5]} 9. O-O {[%clk 0:02:54.6]} 9... Nh6 {[%clk 0:03:01.1]}
10. Bxa4 {[%clk 0:02:33]} 10... Nxe5 {[%clk 0:03:00.7]} 11. Bxd7+ {[%clk
0:02:31.1]} 11... Nxd7 {[%clk 0:03:00.2]} 12. Bxh6 {[%clk 0:02:14.5]} 12... Qxb2
{[%clk 0:02:55.1]} 13. Nbd2 {[%clk 0:02:07.5]} 13... gxh6 {[%clk 0:02:53.8]} 14.
Rb1 {[%clk 0:02:07.7]} 14... Qxc3 {[%clk 0:02:53.3]} 15. Rxb7 {[%clk 0:02:05.4]}
15... cxd4 {[%clk 0:02:47.8]} 16. Qb1 {[%clk 0:01:39.1]} 16... Qa5 {[%clk
0:01:57.5]} 17. Rxd7 {[%clk 0:01:11.1]} 17... Kxd7 {[%clk 0:01:56.2]} 18. Qb7+
{[%clk 0:01:07.1]} 18... Kd6 {[%clk 0:01:44.1]} 19. Rc1 {[%clk 0:01:03.9]} 19...
Ra6 {[%clk 0:01:38.2]} 20. Qb8+ {[%clk 0:00:34]} 20... Ke7 {[%clk 0:01:26.2]}
21. Rc7+ {[%clk 0:00:27.1]} 21... Kf6 {[%clk 0:01:26]} 22. Qd8+ {[%clk
0:00:23.2]} 22... Kg7 {[%clk 0:00:32.9]} 23. Qd7 {[%clk 0:00:23.1]} 23... Be7
{[%clk 0:00:26.3]} 24. Qxe7 {[%clk 0:00:22.4]} 24... Rf8 {[%clk 0:00:26.9]} 25.
g3 {[%clk 0:00:11.2]} 25... Qxa3 {[%clk 0:00:27]} 26. Qd7 {[%clk 0:00:08.7]}
26... Qd6 {[%clk 0:00:25.9]} 27. Nxd4 {[%clk 0:00:07.8]} 27... Qxd7 {[%clk
0:00:25.8]} 28. Rxd7 {[%clk 0:00:08.7]} 28... Kf6 {[%clk 0:00:24.8]} 29. f4
{[%clk 0:00:07.2]} 29... Ra2 {[%clk 0:00:23.7]} 30. N4f3 {[%clk 0:00:06.4]}
30... Rc8 {[%clk 0:00:22.3]} 31. Kf2 {[%clk 0:00:06]} 31... Rcc2 {[%clk
0:00:21.4]} 32. Ke2 {[%clk 0:00:06.1]} 32... Rcb2 {[%clk 0:00:19.2]} 33. Rc7
{[%clk 0:00:05.1]} 33... Rc2 {[%clk 0:00:19.1]} 34. Rb7 {[%clk 0:00:05]} 34...
Rab2 {[%clk 0:00:19.1]} 35. Rd7 {[%clk 0:00:04.6]} 35... Ra2 {[%clk 0:00:19.3]}
36. h3 {[%clk 0:00:04.8]} 36... Rcb2 {[%clk 0:00:18.7]} 37. g4 {[%clk
0:00:04.8]} 37... Ra4 {[%clk 0:00:16.6]} 38. Ke3 {[%clk 0:00:03.9]} 38... Ra3+
{[%clk 0:00:16.6]} 39. Ke2 {[%clk 0:00:04.2]} 39... Raa2 {[%clk 0:00:16.8]} 40.
Ke3 {[%clk 0:00:04.2]} 40... Ra3+ {[%clk 0:00:16.1]} 41. Ke2 {[%clk 0:00:03.6]}
41... Rxf3 {[%clk 0:00:16]} 42. Kxf3 {[%clk 0:00:03.9]} 42... Rxd2 {[%clk
0:00:16.2]} 43. h4 {[%clk 0:00:04.5]} 43... Rd3+ {[%clk 0:00:15.5]} 44. Kf2
{[%clk 0:00:05]} 44... Rd4 {[%clk 0:00:15.8]} 45. Kf3 {[%clk 0:00:05.3]} 45...
Re4 {[%clk 0:00:16.2]} 46. g5+ {[%clk 0:00:05.1]} 46... hxg5 {[%clk 0:00:17.1]}
47. hxg5+ {[%clk 0:00:05.3]} 47... Kg6 {[%clk 0:00:17.7]} 48. Rd8 {[%clk
0:00:06]} 48... h6 {[%clk 0:00:17.3]} 49. Rg8+ {[%clk 0:00:05.8]} 49... Kh7
{[%clk 0:00:17.4]} 50. Rf8 {[%clk 0:00:06.2]} 50... hxg5 {[%clk 0:00:17.3]} 51.
Rxf7+ {[%clk 0:00:05.7]} 51... Kg6 {[%clk 0:00:17.5]} 52. Re7 {[%clk 0:00:05.6]}
52... gxf4 {[%clk 0:00:17.4]} 53. Kg4 {[%clk 0:00:05.7]} 53... Kf6 {[%clk
0:00:17.6]} 54. Re8 {[%clk 0:00:06.1]} 54... Ke5 {[%clk 0:00:17.8]} 55. Rf8
{[%clk 0:00:06.2]} 55... d4 {[%clk 0:00:17.3]} 56. Rd8 {[%clk 0:00:06.5]} 56...
Re3 {[%clk 0:00:17.1]} 57. Re8 {[%clk 0:00:06.5]} 57... d3 {[%clk 0:00:17.1]}
0-1